bitfinex-derivatives/quotes_ETHF0:USTF0_20251021
["timestamp","ask_amount","ask_price","bid_price","bid_amount"]
[1761055996886,1.477,3923.9,3922.7,0.61890244]
[1761055997099,1.477,3923.1,3922.4,0.00305703]
[1761055997391,1.74262,3924.0,3922.4,0.00305703]
[1761055997392,1.93573,3922.6,3922.4,0.00305703]
[1761055997599,1.477,3922.5,3922.4,0.00305703]
[1761055997985,5.0,3922.5,3921.5,0.61970497]
[1761055998186,5.0,3922.5,3920.7,1.483]
[1761055998187,1.3435,3922.3,3920.4,1.4107]
[1761055998392,1.3435,3922.3,3920.0,0.45903]
[1761055998592,1.3435,3921.2,3920.2,3.28880042]
[1761055998791,1.3435,3920.8,3919.8,2.07689148]
[1761055999000,0.45897,3920.5,3919.9,0.62026661]
[1761055999191,0.00223161,3920.8,3920.5,0.45897]
[1761055999397,1.34573161,3920.8,3920.3,1.4107]
[1761055999599,1.34573161,3920.8,3920.4,0.61995771]
[1761055999792,0.00223161,3920.8,3920.4,0.45898]
[1761055999996,0.00223161,3920.8,3920.6,0.45896]
[1761056000199,0.00223161,3920.8,3920.7,1.4107]
[1761056000505,0.00223161,3920.8,3920.7,2.03041283]
[1761056000696,0.00223161,3920.8,3920.7,1.4107]
[1761056000896,0.00223161,3920.8,3920.5,0.45896]
[1761056001199,0.00223161,3920.8,3920.7,0.45895]
[1761056001600,1.3106,3923.9,3921.0,1.4005]
[1761056001792,0.45863,3923.5,3921.7,1.4005]
[1761056002002,1.3106,3923.9,3922.4,1.4005]
[1761056002207,1.76918,3923.9,3923.0,0.45868]
[1761056002503,1.31347826,3923.9,3923.0,0.00249228]
[1761056002813,1.3106,3923.8,3923.0,0.00249228]
[1761056003004,1.3106,3923.8,3923.4,0.45863]
[1761056003198,0.00287826,3923.9,3923.7,0.45859]
[1761056003503,0.00287826,3923.9,3923.8,1.4005]
[1761056003802,0.00287826,3923.9,3923.8,2.01973236]
[1761056004203,0.00287826,3923.9,3923.8,0.61923236]
[1761056004406,1.31347826,3923.9,3923.8,0.61923236]
[1761056004608,1.31347826,3923.9,3923.1,10.00985148]
[1761056004804,1.31347826,3923.9,3923.3,0.45865]
[1761056005105,1.3106,3923.8,3923.4,0.61995235]
[1761056005305,0.00287826,3923.9,3923.5,0.61995235]
[1761056005495,0.00287826,3923.9,3923.6,1.07856235]
[1761056005803,0.00287826,3923.9,3923.7,2.47940653]
[1761056005994,0.00287826,3923.9,3923.8,2.02081653]
[1761056006197,0.00287826,3923.9,3923.8,0.62031653]
[1761056006503,1.31347826,3923.9,3923.8,0.62031653]
[1761056006700,0.00287826,3923.9,3923.8,2.02081653]
[1761056007097,0.00287826,3923.9,3923.8,2.68700801]
[1761056007402,0.00287826,3923.9,3923.8,2.02081653]
[1761056007794,0.00287826,3923.9,3923.8,1.28647004]
[1761056007993,0.45861,3923.7,3923.1,0.66615351]
[1761056008195,1.3106,3923.4,3923.2,0.62072965]
[1761056008490,1.3106,3923.4,3923.3,0.62072965]
[1761056008896,1.3106,3923.2,3923.0,0.00249228]
[1761056009107,1.3106,3923.2,3923.1,0.62102907]
[1761056009308,1.76926,3923.2,3923.1,0.62102907]
[1761056009801,6.76926,3923.2,3923.1,0.62102907]
[1761056010005,1.3106,3923.1,3923.0,0.00249228]
[1761056010194,1.3106,3923.1,3923.0,0.62373404]
[1761056010398,1.3106,3923.7,3923.1,0.45867]
[1761056010701,1.3106,3924.3,3923.2,0.62138351]
[1761056010902,1.3106,3924.2,3923.4,1.4005]
[1761056011107,1.3106,3924.9,3923.7,1.4005]
[1761056011310,1.3106,3924.3,3924.0,0.45856]
[1761056011609,1.3106,3924.8,3924.3,0.45852]
[1761056011807,1.3106,3924.5,3923.6,2.06665351]
[1761056011994,1.3106,3924.3,3924.1,0.45855]
[1761056012606,0.45856,3924.1,3923.8,0.45858]
[1761056012806,1.3106,3924.0,3923.9,0.62112146]
[1761056013203,1.3106,3923.9,3923.7,0.45859]
[1761056013399,0.45856,3924.1,3923.8,0.6212874]
[1761056013709,1.3106,3923.5,3923.3,0.45864]
[1761056014006,1.3106,3923.5,3923.0,0.00249228]
[1761056014007,0.45864,3923.4,3923.2,0.45865]
[1761056014211,1.3106,3923.3,3923.2,0.45865]
[1761056014507,0.45861,3923.6,3923.4,0.45863]
[1761056014708,0.00179511,3924.1,3924.0,1.4005]
[1761056014909,1.8485,3925.9,3924.4,1.14628]
[1761056015212,0.45845,3925.0,3924.8,0.45847]
[1761056015406,1.68379,3925.9,3924.4,1.4005]
[1761056015407,1.3106,3925.8,3924.4,1.4005]
[1761056015608,0.45843,3925.2,3925.0,0.45844]
[1761056015806,0.00329012,3925.2,3925.1,0.45843]
[1761056016016,1.3106,3925.1,3924.9,0.45845]
[1761056016202,1.76904,3925.1,3924.9,0.45845]
[1761056016506,1.3106,3925.0,3924.9,0.45845]
[1761056016903,0.45844,3925.1,3924.6,0.45849]
[1761056017109,1.76905,3925.0,3924.9,0.45846]
[1761056017406,1.76911,3924.5,3924.3,0.66698899]
[1761056017605,0.45851,3924.5,3924.4,0.62632215]
[1761056017801,1.76911,3924.5,3924.4,0.62632215]
[1761056018511,1.3106,3924.2,3923.7,0.66698899]
[1761056018713,0.4972,3924.8,3923.2,0.66698899]
[1761056018714,1.3106,3923.3,3923.2,0.66698899]
[1761056018907,1.76926,3923.2,3923.0,1.12816127]
[1761056019108,1.76926,3923.2,3923.0,0.46117228]
[1761056019502,1.3106,3923.2,3923.0,0.46117228]
[1761056020015,1.3106,3923.1,3923.0,0.00249228]
[1761056020517,6.3106,3923.1,3923.0,0.00249228]
[1761056020705,0.45876,3922.3,3922.1,0.66698899]
[1761056021008,1.3106,3922.0,3921.8,1.12580899]
[1761056021215,1.3106,3922.0,3921.2,0.66698899]
[1761056021216,1.3106,3921.9,3921.2,0.66698899]
[1761056021414,1.3106,3921.9,3921.4,0.45886]
[1761056021614,0.46123566,3921.9,3921.6,0.45884]
[1761056021815,0.00242566,3921.9,3921.7,0.45883]
[1761056022315,0.00242566,3921.9,3921.8,1.4005]
[1761056022627,0.00242566,3921.9,3921.8,6.4005]
[1761056022816,1.3106,3923.0,3922.6,0.45872]
[1761056023011,0.45872,3922.7,3922.4,0.45874]
[1761056023211,1.3106,3922.3,3922.1,0.45878]
[1761056023412,0.45873,3922.6,3922.4,0.45875]
[1761056023611,1.14668,3923.1,3921.9,0.66856313]
[1761056023806,1.3106,3922.3,3921.9,0.66856313]
[1761056024011,1.76938,3922.2,3921.9,0.45881]
[1761056024208,1.3106,3922.1,3921.7,0.66856313]
[1761056024510,0.00208326,3922.6,3922.0,0.45879]
[1761056024511,1.3106,3922.2,3922.0,0.45879]
[1761056024715,0.45875,3922.4,3922.3,0.45876]
[1761056024905,0.00208326,3922.6,3921.9,1.4005]
[1761056025302,1.3106,3922.5,3922.4,0.45875]
[1761056025506,0.45875,3922.4,3922.2,0.45877]
[1761056025712,1.76935,3922.4,3922.2,0.45877]
[1761056025912,0.45881,3921.9,3921.6,1.12740313]
[1761056026114,0.45881,3921.9,3921.4,0.89395558]
[1761056026115,0.45884,3921.6,3921.4,0.00253807]
[1761056026306,0.45893,3920.9,3920.4,0.66856313]
[1761056026507,0.45896,3920.6,3920.4,0.66856313]
[1761056026707,0.45901,3920.2,3920.1,0.66856313]
[1761056026911,1.76965,3919.9,3919.7,0.66856313]
[1761056027214,0.45901,3920.2,3919.8,1.4005]
[1761056027414,1.3106,3920.7,3919.8,2.06906313]
[1761056027614,0.45904,3920.0,3919.8,0.45905]
[1761056027918,1.3106,3920.9,3919.7,0.00185237]
[1761056028216,11.4269,3922.4,3920.3,1.4005]
[1761056028409,11.4269,3922.4,3920.0,0.5348]
[1761056028410,1.14707,3921.8,3920.0,0.66856313]
[1761056028611,1.14722,3921.3,3920.3,0.45899]
[1761056028810,1.14732,3920.9,3919.8,0.66856313]
[1761056029108,0.45889,3921.3,3920.9,0.45892]
[1761056029308,0.4589,3921.2,3920.9,0.45892]
[1761056029616,1.3106,3921.2,3921.1,0.4589]
[1761056029816,40.8,3922.1,3920.6,1.1474]
[1761056029817,1.3106,3921.9,3920.7,2.54788]
[1761056030022,0.45883,3921.7,3921.5,0.45885]
[1761056030321,0.45883,3921.8,3921.4,0.45886]
[1761056030516,3.3504,3922.5,3921.8,0.45882]
[1761056030716,3.3504,3922.5,3921.0,1.14728]
[1761056030717,0.00208326,3922.6,3922.4,0.45875]
[1761056030919,0.00208326,3922.6,3922.5,3.1587]
[1761056031214,0.00208326,3922.6,3921.8,0.66856313]
[1761056031411,3.80918,3922.2,3921.9,0.62572295]
[1761056031610,0.45875,3922.5,3921.7,3.1587]
[1761056031808,3.3504,3922.5,3921.8,4.45321374]
[1761056032019,3.3504,3922.5,3922.3,0.45876]
[1761056032325,3.80915,3922.4,3922.3,0.00271298]
[1761056032625,0.00208326,3922.6,3922.3,0.00271298]
[1761056032813,0.46081326,3922.6,3922.3,0.00271298]
[1761056033011,0.45874,3922.5,3922.3,0.00271298]
[1761056033214,0.00208326,3922.6,3922.3,0.00271298]
[1761056033215,0.00208326,3922.6,3922.5,3.1587]
[1761056033417,0.00208326,3922.6,3922.3,0.00271298]
[1761056033418,3.3504,3922.4,3922.3,0.00271298]
[1761056034422,3.3504,3922.4,3922.3,0.62610124]
[1761056034624,3.3504,3922.4,3922.3,0.626098]
[1761056034819,3.3504,3924.9,3922.5,3.61744]
[1761056035010,3.8089,3924.6,3923.3,3.1587]
[1761056035210,3.8476,3925.0,3923.6,3.1587]
[1761056035523,0.45849,3924.7,3924.4,0.45851]
[1761056036017,1.2468,3924.0,3923.1,0.66836234]
[1761056036212,0.45856,3924.1,3923.4,0.45863]
[1761056036413,0.45858,3923.9,3923.4,3.61733]
[1761056036711,3.3504,3924.1,3922.8,3.1587]
[1761056037015,1.14633,3924.3,3922.7,0.66836234]
[1761056037016,0.45866,3923.2,3923.0,3.1587]
[1761056037215,3.3504,3924.0,3923.1,0.62312867]
[1761056037410,0.45865,3923.3,3923.2,3.78182867]
[1761056037616,0.45865,3923.3,3923.2,3.1587]
[1761056037921,0.45865,3923.3,3923.2,3.78207072]
[1761056038326,0.45863,3923.5,3923.2,3.78207072]
[1761056038522,0.45863,3923.5,3923.2,3.1587]
[1761056038821,0.45874,3922.5,3922.2,0.66836234]
[1761056039026,0.45873,3922.6,3922.4,0.62382613]
[1761056039324,0.45873,3922.6,3922.5,0.62382613]
[1761056039926,3.80913,3922.6,3922.5,0.62382613]
[1761056040523,3.80915,3922.4,3921.7,0.66836234]
[1761056040827,3.3504,3921.8,3920.9,0.45892]
[1761056041028,1.14703,3921.9,3920.0,1.68237]
[1761056041029,3.8093,3921.2,3921.0,0.62454904]
[1761056041226,44.1504,3921.5,3920.1,3.1587]
[1761056041524,10.334,3922.6,3921.1,0.4589]
[1761056041525,3.3504,3922.1,3921.1,0.4589]
[1761056041724,0.00236756,3922.1,3921.7,3.1587]
[1761056041928,0.00236756,3922.1,3922.0,3.1587]
[1761056042230,0.00236756,3922.1,3922.0,3.6175]
[1761056042421,0.00236756,3922.1,3922.0,4.23868159]
[1761056042721,2.29245,3924.7,3922.0,4.23868159]
[1761056042722,4.49692,3923.7,3922.8,3.6174]
[1761056042931,0.45867,3923.1,3922.8,3.6174]
[1761056043226,0.45869,3923.0,3922.7,3.61741]
[1761056043427,0.45869,3923.0,3922.8,0.62115555]
[1761056043629,0.00293036,3923.0,3922.8,0.4587]
[1761056044033,0.00293036,3923.0,3922.9,0.62113258]
[1761056044325,0.00293036,3923.0,3922.9,3.7797369]
[1761056044524,0.00293036,3923.0,3922.9,3.1587]
[1761056045226,0.00293036,3923.0,3922.9,8.1587]
[1761056046129,0.00293036,3923.0,3922.9,4.05011751]
[1761056046526,0.00293036,3923.0,3922.9,3.1587]
[1761056046830,0.45873,3922.6,3922.3,0.89141751]
[1761056047018,0.45871,3922.8,3922.1,3.1587]
[1761056047324,0.45872,3922.7,3922.1,0.45878]
[1761056047630,3.80913,3922.6,3922.1,3.61748]
[1761056047828,3.3504,3922.2,3921.8,0.89141751]
[1761056048027,3.3504,3921.5,3921.2,0.89141751]
[1761056048333,3.80929,3921.3,3921.1,0.00326695]
[1761056048535,0.45896,3920.6,3920.4,0.89141751]
[1761056048742,3.3504,3920.6,3920.2,0.45901]
[1761056049029,0.45894,3920.9,3920.4,0.45898]
[1761056049231,3.3504,3921.1,3920.2,0.89141751]
[1761056049419,3.3504,3921.8,3920.4,3.1587]
[1761056049625,3.3504,3921.8,3920.8,0.45893]
[1761056049826,3.3504,3921.7,3920.6,3.1587]
[1761056050232,3.80916,3922.4,3921.9,0.4588]
[1761056050528,0.45877,3922.3,3921.9,3.6175]
[1761056050727,3.3504,3922.3,3921.3,3.1587]
[1761056050933,3.3504,3922.2,3921.9,0.4588]
[1761056051134,3.3504,3922.2,3922.1,0.45879]
[1761056051341,0.45876,3922.4,3922.1,0.45879]
[1761056051634,3.80918,3922.2,3921.9,0.4588]
[1761056051824,0.45877,3922.3,3921.4,3.1587]
[1761056052234,3.80918,3922.2,3921.8,0.45881]
[1761056052529,3.80923,3921.8,3921.3,0.89141751]
[1761056052734,3.80923,3921.8,3921.0,1.34300209]
[1761056052735,3.3504,3921.4,3921.0,0.89141751]
[1761056052936,0.45891,3921.1,3920.8,0.89141751]
[1761056053239,3.3504,3921.1,3920.9,0.45892]
[1761056053432,1.14705,3921.9,3920.4,2.62080262]
[1761056053433,3.3504,3920.9,3920.4,0.00200053]
[1761056053625,0.45889,3921.2,3920.5,3.1587]
[1761056053935,0.45889,3921.2,3920.9,0.45892]
[1761056054126,0.45895,3920.8,3920.5,0.45897]
[1761056054435,0.45895,3920.8,3920.4,0.00200053]
[1761056054436,0.45897,3920.5,3920.4,0.00200053]
[1761056054640,3.3504,3921.4,3920.4,0.00200053]
[1761056054840,3.80927,3921.4,3921.0,0.45891]
[1761056055149,0.45885,3921.6,3921.3,0.45887]
[1761056055321,1.2468,3922.0,3921.2,0.45888]
[1761056055322,3.3504,3921.5,3921.2,0.45888]
[1761056055526,3.3504,3921.5,3921.3,0.45887]
[1761056055822,3.3504,3922.3,3921.6,0.45883]
[1761056056026,3.3504,3922.2,3921.2,3.1587]
[1761056056224,3.3504,3922.2,3921.6,0.45883]
[1761056056439,3.3504,3922.1,3921.7,0.45883]
[1761056056735,21.79874,3922.9,3921.2,3.1587]
[1761056056736,0.45882,3921.8,3921.6,0.45884]
[1761056056923,3.3504,3921.7,3921.4,0.45886]
[1761056057131,0.45883,3921.7,3921.4,0.45886]
[1761056057333,0.45883,3921.8,3921.5,0.45885]
[1761056057529,3.3504,3922.2,3921.1,3.1587]
[1761056057730,3.8092,3922.0,3921.7,0.45883]
[1761056058029,3.3504,3921.5,3921.2,0.45889]
[1761056058232,3.3504,3921.5,3920.5,4.30613]
[1761056058233,1.14697,3922.1,3920.8,0.89141751]
[1761056058428,0.45885,3921.6,3921.4,0.45886]
[1761056058729,0.45889,3921.2,3920.7,2.9926]
[1761056058936,0.45883,3921.8,3920.9,1.14732]
[1761056059129,3.006,3922.2,3921.6,0.45884]
[1761056059528,0.4588,3922.0,3921.3,2.9926]
[1761056060039,3.4648,3922.0,3921.3,2.9926]
[1761056060240,0.45881,3921.9,3921.6,0.45883]
[1761056060425,3.46481,3921.9,3921.7,0.45883]
[1761056060738,0.45884,3921.7,3921.1,0.89141751]
[1761056060939,0.45883,3921.8,3921.5,3.39045]
[1761056061232,3.29163,3921.7,3921.5,0.45885]
[1761056061545,0.45883,3921.7,3921.5,0.45885]
[1761056063836,0.45876,3922.4,3922.2,0.45876]
[1761056064041,2.8328,3922.4,3922.2,0.45877]
[1761056064230,3.29155,3922.4,3922.2,0.45877]
[1761056064628,0.00293036,3923.0,3922.8,3.3903]
[1761056065141,0.00293036,3923.0,3922.9,2.9316]
[1761056065437,0.00293036,3923.0,3922.9,3.8262555]
[1761056065938,0.00293036,3923.0,3922.9,2.9316]
[1761056066640,0.00293036,3923.0,3922.9,3.82621859]
[1761056067137,0.00293036,3923.0,3922.9,2.9316]
[1761056067330,2.8328,3924.0,3923.8,0.45858]
[1761056067632,0.45856,3924.1,3923.9,0.45857]
[1761056067838,2.8328,3924.3,3923.8,2.9316]
[1761056068030,0.45855,3924.2,3924.0,0.45855]
[1761056068230,0.45854,3924.2,3924.0,0.45856]
[1761056068430,0.00217475,3924.2,3924.1,2.9316]
[1761056069338,0.00217475,3924.2,3924.0,0.0025882]
[1761056069537,2.83497475,3924.2,3924.0,0.0025882]
[1761056070040,0.00217475,3924.2,3924.0,3.3927482]
[1761056070233,0.00217475,3924.2,3924.0,0.4611482]
[1761056070428,2.83497475,3924.2,3924.0,0.0025882]
[1761056070631,2.8328,3924.1,3924.0,0.0025882]
[1761056071137,7.8328,3924.1,3924.0,0.0025882]
[1761056072537,7.8328,3924.1,3922.7,0.89461859]
[1761056072538,1.1378,3924.0,3922.7,0.89461859]
[1761056072733,1.1378,3924.0,3923.1,0.45867]
[1761056072734,2.8328,3923.3,3923.1,0.45867]
[1761056072934,3.29143,3923.5,3923.3,0.45865]
[1761056073134,3.29144,3923.4,3923.2,0.45865]
[1761056073537,0.45864,3923.4,3923.2,0.46133155]
[1761056074043,3.29144,3923.4,3923.2,0.46133155]
[1761056074640,3.29144,3923.4,3923.2,0.00268155]
[1761056075343,2.8328,3923.4,3923.2,0.00268155]
[1761056075646,3.29144,3923.4,3923.2,0.00268155]
[1761056075838,2.8328,3923.4,3923.2,0.00268155]
[1761056076142,0.45861,3923.6,3923.2,3.39293155]
[1761056076339,0.45859,3923.8,3923.4,0.45863]
[1761056076641,2.83497475,3924.2,3923.5,0.45861]
[1761056076845,0.00217475,3924.2,3924.1,3.39015]
[1761056077149,0.45845,3925.0,3924.6,0.45849]
[1761056077337,0.45845,3925.0,3924.7,2.9316]
[1761056077648,0.45844,3925.1,3924.7,2.9316]
[1761056077941,2.8328,3925.6,3925.2,2.9316]
[1761056078145,2.8328,3925.6,3925.5,2.9316]
[1761056078146,0.00251043,3925.6,3925.5,2.9316]
[1761056078354,0.46089043,3925.6,3925.0,3.39004]
[1761056078535,0.45841,3925.3,3925.0,2.9316]
[1761056078847,0.45842,3925.2,3925.0,2.9316]
[1761056079048,0.45842,3925.2,3925.0,2.89172945]
[1761056079237,2.8328,3925.1,3924.0,2.03561859]
[1761056079442,0.45847,3924.8,3924.0,1.141]
[1761056079744,1.14846043,3925.6,3924.0,1.141]
[1761056079745,0.45847,3924.9,3924.0,1.141]
[1761056079946,0.90904357,3928.0,3926.0,1.141]
[1761056080153,2.8328,3928.8,3926.0,1.141]
[1761056080154,2.8328,3928.8,3927.0,1.141]
[1761056080339,2.8328,3928.8,3927.4,0.45816]
[1761056080340,0.45803,3928.6,3927.4,0.45816]
[1761056080542,2.8328,3928.8,3927.5,0.61920383]
[1761056080743,2.8328,3928.8,3927.6,0.61920383]
[1761056080944,0.00314349,3928.8,3927.7,0.61920383]
[1761056081140,0.4581,3928.0,3927.8,0.61920383]
[1761056081357,3.29092,3927.8,3927.6,0.00325216]
[1761056081539,0.45807,3928.3,3927.7,3.54985316]
[1761056081743,0.45807,3928.3,3927.9,2.9316]
[1761056081943,2.8328,3928.4,3927.9,2.9316]
[1761056082137,0.45809,3928.0,3927.6,0.00325216]
[1761056082340,0.00314349,3928.8,3927.6,2.93485216]
[1761056082643,0.4581,3928.0,3927.6,2.93485216]
[1761056083850,0.45812,3927.9,3927.6,2.93485216]
[1761056084052,0.45808,3928.2,3927.6,2.93485216]
[1761056084546,0.46115349,3928.8,3927.9,2.9316]
[1761056084755,0.45804,3928.6,3928.1,2.9316]
[1761056084950,0.45805,3928.4,3928.1,2.9316]
[1761056085152,2.8328,3928.3,3927.7,2.9316]
[1761056085352,0.45812,3927.9,3927.6,0.00325216]
[1761056085649,0.45813,3927.7,3927.6,0.00325216]
[1761056086044,2.8328,3927.7,3927.6,0.00325216]
[1761056086246,0.45813,3927.8,3927.6,0.00325216]
[1761056086844,0.45813,3927.8,3927.6,2.93485216]
[1761056087054,3.29093,3927.8,3927.6,0.00325216]
[1761056087252,10.314,3928.7,3927.6,0.00325216]
[1761056087253,2.8328,3928.6,3927.6,0.00325216]
[1761056087460,2.8328,3927.7,3927.6,0.00325216]
[1761056088449,0.45813,3927.8,3927.6,2.93485216]
[1761056088654,10.314,3928.7,3927.7,2.9316]
[1761056088852,10.314,3928.7,3926.7,2.2866]
[1761056088853,2.8328,3928.3,3926.1,0.89461859]
[1761056089046,2.8328,3925.7,3925.0,2.9316]
[1761056089249,3.29122,3925.3,3924.3,2.9316]
[1761056089453,2.8328,3925.1,3924.3,2.9316]
[1761056089754,0.45837,3925.7,3924.3,0.28514086]
[1761056089945,0.0031605,3925.7,3925.0,2.9316]
[1761056090145,5.9788,3926.7,3925.0,2.9316]
[1761056090146,2.8328,3927.3,3926.4,2.9316]
[1761056090351,0.45825,3926.8,3926.4,2.9316]
[1761056090555,2.8328,3927.5,3926.6,2.7522]
[1761056090763,0.45822,3927.0,3926.6,2.7522]
[1761056091159,0.00270265,3927.0,3926.8,2.7522]
[1761056091458,0.00270265,3927.0,3926.8,3.21043]
[1761056091850,2.701,3929.3,3927.1,2.7522]
[1761056092048,2.701,3928.8,3927.7,3.21032]
[1761056092257,2.701,3928.8,3927.8,0.45811]
[1761056092462,2.701,3928.2,3927.1,6.11043083]
[1761056092650,0.45815,3927.6,3927.2,2.7522]
[1761056092851,0.00317776,3927.6,3927.2,2.75425684]
[1761056093052,0.00317776,3927.6,3927.5,2.7522]
[1761056093554,0.00317776,3927.6,3927.5,7.7522]
[1761056094152,0.00317776,3927.6,3927.5,2.7522]
[1761056094958,0.00317776,3927.6,3927.5,7.7522]
[1761056095355,0.00317776,3927.6,3927.5,2.7522]
[1761056095551,0.00317776,3927.6,3927.5,5.0]
[1761056095748,0.00317776,3927.6,3927.5,2.7522]
[1761056096053,0.46132776,3927.6,3927.2,2.75425684]
[1761056096248,0.00317776,3927.6,3927.3,3.21038]
[1761056096444,0.00317776,3927.6,3927.5,2.7522]
[1761056096652,2.28266,3929.4,3927.2,0.00205684]
[1761056096653,0.45803,3928.6,3927.9,2.7522]
[1761056097052,0.45804,3928.5,3927.9,2.7522]
[1761056097247,2.701,3928.6,3927.4,2.7522]
[1761056097454,2.701,3928.4,3927.4,2.7522]
[1761056097662,0.45808,3928.2,3927.8,2.7522]
[1761056097859,0.45809,3928.1,3927.8,2.7522]
[1761056098049,0.45807,3928.2,3927.2,2.75425684]
[1761056098256,0.45814,3927.7,3927.2,3.21243684]
[1761056098454,0.00294562,3928.4,3927.3,2.7522]
[1761056098760,40.8,3929.4,3927.3,2.7522]
[1761056098761,40.8,3929.4,3927.7,0.45813]
[1761056098957,0.45802,3928.7,3927.4,1.14541]
[1761056099261,3.15903,3928.7,3928.2,3.21026]
[1761056099452,41.94485,3929.4,3928.4,3.21024]
[1761056099453,2.701,3929.2,3928.4,3.21024]
[1761056099656,2.70379571,3929.2,3928.5,2.7522]
[1761056099856,0.45802,3928.7,3928.5,2.7522]
[1761056100166,0.458,3928.9,3928.5,2.7522]
[1761056100356,2.70379571,3929.2,3928.5,2.7522]
[1761056100761,0.00279571,3929.2,3928.1,0.66289438]
[1761056101056,0.45805,3928.4,3928.2,0.61450327]
[1761056101258,0.45805,3928.4,3927.2,0.00205684]
[1761056101259,1.14514,3928.4,3927.3,0.66289438]
[1761056101560,2.701,3927.3,3927.2,0.00205684]
[1761056101965,2.701,3927.3,3926.2,2.7522]
[1761056101966,3.15927,3926.6,3926.2,2.7522]
[1761056102164,1.14534,3927.7,3926.2,2.7522]
[1761056102165,2.701,3927.5,3926.2,2.7522]
[1761056102362,0.45829,3926.4,3926.2,2.7522]
[1761056102662,0.45829,3926.4,3926.0,0.66289438]
[1761056102663,2.701,3926.5,3925.8,0.66289438]
[1761056102868,1.14543,3927.4,3924.5,1.76799858]
[1761056102869,3.1594,3925.4,3925.2,0.66289438]
[1761056103159,3.1594,3925.4,3923.9,1.76799858]
[1761056103160,0.45851,3924.5,3924.2,0.66289438]
[1761056103360,0.45852,3924.4,3924.1,0.66289438]
[1761056103567,0.45855,3924.2,3923.7,2.7522]
[1761056103757,1.14621,3924.7,3923.7,2.7522]
[1761056103956,1.14621,3924.7,3923.1,0.66289438]
[1761056103957,0.45862,3923.5,3923.1,0.66289438]
[1761056104251,3.15964,3923.3,3923.1,0.00246037]
[1761056104456,1.1464,3924.1,3922.8,0.025492]
[1761056104753,2.701,3922.9,3922.8,0.00120909]
[1761056105464,2.701,3922.9,3922.8,0.00419996]
[1761056106162,7.701,3922.9,3922.8,0.00419996]
[1761056106463,3.15983,3921.8,3921.1,0.66289438]
[1761056106660,3.15983,3921.8,3921.0,0.45891]
[1761056106862,3.15977,3922.3,3921.3,0.45887]
[1761056107054,40.8,3922.2,3921.1,2.7522]
[1761056107259,2.701,3922.1,3921.1,0.00240169]
[1761056107468,2.701,3922.1,3921.2,0.45889]
[1761056107668,0.45881,3922.0,3921.2,0.45889]
[1761056107962,40.80311264,3922.2,3921.3,2.7522]
[1761056108166,40.80311264,3922.2,3921.1,0.00240169]
[1761056108167,0.00311264,3922.2,3921.1,0.00240169]
[1761056108362,2.70411264,3922.2,3921.2,2.7522]
[1761056108578,2.701,3922.0,3921.3,0.45887]
[1761056109161,2.701,3922.0,3921.1,0.00240169]
[1761056109162,2.701,3921.3,3921.1,0.00240169]
[1761056109360,5.0,3922.0,3921.1,0.00240169]
[1761056109361,3.15989,3921.2,3921.1,0.00240169]
[1761056109564,2.701,3921.1,3919.5,0.45909]
[1761056109768,2.701,3920.5,3919.9,0.45903]
[1761056109968,2.701,3920.5,3919.8,0.45905]
[1761056110363,1.14743,3920.6,3919.0,4.29624]
[1761056110558,51.298,3921.0,3919.0,4.29624]
[1761056110559,1.108,3920.4,3919.0,0.00224046]
[1761056110759,0.45912,3919.2,3919.0,0.00224046]
[1761056110967,2.70363374,3919.2,3919.0,0.00224046]
[1761056111170,0.46176374,3919.2,3919.0,0.00224046]
[1761056111466,3.16276374,3919.2,3919.0,0.00224046]
[1761056111875,2.70363374,3919.2,3919.0,0.00224046]
[1761056112172,3.16276374,3919.2,3919.0,0.00224046]
[1761056112368,2.70363374,3919.2,3919.0,0.00224046]
[1761056112676,0.00263374,3919.2,3919.0,2.75444046]
[1761056112870,0.00263374,3919.2,3919.0,3.21358046]
[1761056113067,0.45914,3919.1,3919.0,0.00224046]
[1761056113373,3.16014,3919.1,3919.0,0.00224046]
[1761056113875,2.701,3919.1,3919.0,0.00224046]
[1761056114072,0.00263374,3919.2,3919.0,0.00224046]
[1761056114772,3.16276374,3919.2,3919.0,0.00224046]
[1761056116471,0.45927,3918.0,3917.5,2.7522]
[1761056116674,0.45936,3917.2,3916.7,0.2800371]
[1761056116873,0.45938,3917.0,3916.1,2.7522]
[1761056117171,13.159,3917.1,3916.1,2.7522]
[1761056117369,10.458,3917.1,3916.1,2.75504634]
[1761056117573,2.701,3917.7,3916.6,2.7522]
[1761056117773,40.8,3917.9,3916.5,2.7522]
[1761056117961,0.45929,3917.8,3917.1,0.45936]
[1761056118167,43.78058,3917.9,3916.8,2.7522]
[1761056118484,2.5213,3918.4,3917.7,2.4033]
[1761056118770,2.98054,3918.3,3917.9,0.45927]
[1761056118978,40.8,3918.2,3917.9,0.45927]
[1761056119182,43.3213,3918.2,3918.0,0.45925]
[1761056119369,40.8,3918.2,3917.1,1.14843]
[1761056119675,7.1323,3918.4,3917.9,0.45928]
[1761056119871,2.5213,3918.3,3917.3,2.4033]
[1761056120067,0.4593,3917.7,3917.3,0.45934]
[1761056120270,1.14798,3918.7,3917.3,2.4033]
[1761056120271,2.5213,3918.7,3917.3,2.4033]
[1761056120571,2.5213,3918.7,3917.0,1.0374]
[1761056120776,41.25916,3918.9,3917.7,2.5006]
[1761056120977,2.3499,3918.8,3917.7,2.5006]
[1761056121176,0.45922,3918.4,3918.0,2.5006]
[1761056121373,0.45924,3918.2,3917.8,2.5006]
[1761056121574,0.45926,3918.1,3917.8,2.5006]
[1761056121771,0.45923,3918.3,3917.4,2.5006]
[1761056121978,0.45926,3918.1,3917.7,0.4593]
[1761056122172,2.80914,3918.3,3917.9,0.45927]
[1761056122480,0.45924,3918.3,3917.9,2.95987]
[1761056122672,0.45921,3918.5,3917.9,2.5006]
[1761056122872,6.965,3918.7,3918.4,0.45922]